[Event "Marshall CC U2400 February 2024"]
[Site "New York"]
[Date "2024.02.17"]
[Round "2.3"]
[White "Rosenthal, Max Manuel"]
[Black "De Villa, Jose"]
[Result "1-0"]
[ECO "C01"]
[WhiteElo "1949"]
[BlackElo "1641"]
[Annotator "NA RC"]
[PlyCount "92"]
[EventDate "2024.02.16"]
[EventType "swiss"]
[EventCountry "USA"]
[SourceTitle "playchess.com"]
[Source "ChessBase"]
[SourceQuality "1"]
[TimeControl "5400+30"]

1. e4 {[%emt 0:00:03]} e6 {[%emt 0:19:12]} 2. d4 {[%emt 0:00:04]} d6 {[%emt 0:00:43]} 3. Nc3 {[%emt 0:00:12]} c6 {[%emt 0:00:20]} 4. a4 {[%emt 0:00:22]} Nd7 {[%emt 0:00:08]} 5. Be3 {[%emt 0:00:54]} Qc7 {[%emt 0:00:41]} 6. Be2 {[%emt 0:03:15]} Ngf6 {[%emt 0:00:11]} 7. h3 {[%emt 0:02:18]} Be7 {[%emt 0:00:43]} 8. Qd2 {[%emt 0:00:25]} O-O {[%emt 0:02:15]} 9. g4 {[%emt 0:00:16]} d5 {[%emt 0:01:44]} 10. e5 {[%emt 0:00:37]} Ne4 {[%emt 0:00:57]} 11. Nxe4 {[%emt 0:00:26]} dxe4 {[%emt 0:00:26]} 12. c3 {[%emt 0:03:13]} Nb6 {[%emt 0:00:35]} 13. Qc2 {[%emt 0:01:15]} c5 {[%emt 0:02:12]} 14. Qxe4 {[%emt 0:01:53]} cxd4 {[%emt 0:00:43]} 15. Bxd4 {[%emt 0:01:42]} Bd7 {[%emt 0:00:29]} 16. Bd3 {[%emt 0:01:17]} g6 {[%emt 0:00:07]} 17. Bb5 {[%emt 0:01:20]} Nd5 {[%emt 0:01:24]} 18. Bxd7 {[%emt 0:00:24]} Qxd7 {[%emt 0:00:15]} 19. Ne2 {[%emt 0:01:43]} b5 {[%emt 0:00:37]} 20. axb5 {[%emt 0:01:06]} Qxb5 {[%emt 0:00:13]} 21. O-O {[%emt 0:00:33]} a6 {[%emt 0:02:08]} 22. b4 {[%emt 0:00:35]} Rac8 {[%emt 0:00:33]} 23. Rfd1 {[%emt 0:02:08]} Qc4 {[%emt 0:00:35]} 24. Qd3 {[%emt 0:01:00]} Qxd3 {[%emt 0:01:30]} 25. Rxd3 {[%emt 0:00:09]} Rc6 {[%emt 0:00:28]} 26. Rd2 {[%emt 0:00:16]} Nc7 {[%emt 0:01:49]} 27. Rda2 {[%emt 0:04:27]} Rd8 {[%emt 0:00:52]} 28. Kg2 {[%emt 0:01:21]} Kg7 {[%emt 0:01:11]} 29. f4 {[%emt 0:03:02]} Kf8 {[%emt 0:00:45]} 30. Kf2 {[%emt 0:02:05]} Ke8 {[%emt 0:00:33]} 31. Ke3 {[%emt 0:03:44]} Kd7 {[%emt 0:02:58]} 32. Kd3 {[%emt 0:00:48]} Kc8 {[%emt 0:00:11]} 33. Ra4 {[%emt 0:00:51]} Kb7 {[%emt 0:01:49]} 34. c4 {[%emt 0:00:40]} Kc8 {[%emt 0:02:19]} 35. Nc3 {[%emt 0:02:50]} Bh4 {[%emt 0:02:14]} 36. Ne4 {[%emt 0:00:30]} Be7 {[%emt 0:01:12]} 37. c5 {[%emt 0:07:04]} Nd5 {[%emt 0:02:16]} 38. Nd6+ {[%emt 0:04:52]} Bxd6 {[%emt 0:00:53]} 39. exd6 {[%emt 0:00:12]} Nxf4+ {[%emt 0:00:38]} 40. Ke4 {[%emt 0:00:10]} Nd5 {[%emt 0:01:35]} 41. Rxa6 {[%emt 0:00:28]} Rxa6 {[%emt 0:00:46]} 42. Rxa6 {[%emt 0:00:17]} Nxb4 {[%emt 0:00:05]} 43. Ra8+ {[%emt 0:01:27]} Kd7 {[%emt 0:00:53]} 44. Ra7+ {[%emt 0:00:03]} Ke8 {[%emt 0:00:50]} 45. Bf6 {[%emt 0:00:03]} Nc6 {[%emt 0:01:48]} 46. Rc7 {[%emt 0:00:05]} Rb8 {[%emt 0:48:44]} 1-0

[Event "Marshall CC U2400 February 2024"]
[Site "New York"]
[Date "2024.02.17"]
[Round "2.4"]
[White "Schaefer, Sasha Milo"]
[Black "Ng, Timothy"]
[Result "1/2-1/2"]
[ECO "B31"]
[WhiteElo "1633"]
[BlackElo "1728"]
[Annotator "NA RC"]
[PlyCount "125"]
[EventDate "2024.02.16"]
[EventType "swiss"]
[EventCountry "USA"]
[SourceTitle "playchess.com"]
[Source "ChessBase"]
[SourceQuality "1"]
[TimeControl "5400+30"]

1. e4 {[%emt 0:00:01]} c5 {[%emt 0:00:05]} 2. Nf3 {[%emt 0:00:02]} Nc6 {[%emt 0:00:07]} 3. Bb5 {[%emt 0:00:05]} g6 {[%emt 0:00:06]} 4. O-O {[%emt 0:00:16]} Bg7 {[%emt 0:00:05]} 5. c3 {[%emt 0:00:11]} e5 {[%emt 0:00:18]} 6. Bxc6 {[%emt 0:00:41]} dxc6 {[%emt 0:00:06]} 7. d3 {[%emt 0:00:05]} Ne7 {[%emt 0:00:34]} 8. Be3 {[%emt 0:00:34]} b6 {[%emt 0:01:04]} 9. Qe2 {[%emt 0:01:00]} O-O {[%emt 0:00:41]} 10. Rd1 {[%emt 0:00:33]} Ba6 {[%emt 0:02:33]} 11. Na3 {[%emt 0:00:44]} Qc7 {[%emt 0:00:59]} 12. Nc4 {[%emt 0:01:15]} Rad8 {[%emt 0:05:13]} 13. a4 {[%emt 0:01:46]} f5 {[%emt 0:03:03]} 14. exf5 {[%emt 0:00:53]} gxf5 {[%emt 0:01:16]} 15. Bg5 {[%emt 0:01:55]} Bxc4 {[%emt 0:01:41]} 16. dxc4 {[%emt 0:01:05]} e4 {[%emt 0:01:13]} 17. Bxe7 {[%emt 0:01:38]} Rxd1+ {[%emt 0:06:12]} 18. Rxd1 {[%emt 0:00:21]} Qxe7 {[%emt 0:01:02]} 19. Nd2 {[%emt 0:00:19]} Rd8 {[%emt 0:05:38]} 20. Nf1 {[%emt 0:01:10]} Rxd1 {[%emt 0:03:54]} 21. Qxd1 {[%emt 0:00:08]} h6 {[%emt 0:01:33]} 22. Ne3 {[%emt 0:02:12]} Qf7 {[%emt 0:03:45]} 23. Qd8+ {[%emt 0:02:44]} Kh7 {[%emt 0:00:34]} 24. Qc8 {[%emt 0:01:14]} f4 {[%emt 0:02:30]} 25. Qf5+ {[%emt 0:00:09]} Qxf5 {[%emt 0:02:23]} 26. Nxf5 {[%emt 0:00:03]} Bf8 {[%emt 0:05:14]} 27. g3 {[%emt 0:02:49]} Kg6 {[%emt 0:03:46]} 28. Nh4+ {[%emt 0:00:07]} Kg5 {[%emt 0:00:45]} 29. Ng2 {[%emt 0:00:11]} f3 {[%emt 0:00:16]} 30. Ne3 {[%emt 0:01:21]} h5 {[%emt 0:01:41]} 31. h4+ {[%emt 0:00:13]} Kg6 {[%emt 0:02:22]} 32. g4 {[%emt 0:07:21]} hxg4 {[%emt 0:02:26]} 33. Nxg4 {[%emt 0:00:39]} Kf5 {[%emt 0:02:55]} 34. Ne3+ {[%emt 0:00:22]} Kf4 {[%emt 0:00:41]} 35. Kh2 {[%emt 0:01:08]} a6 {[%emt 0:06:06]} 36. Kh3 {[%emt 0:01:20]} b5 {[%emt 0:01:58]} 37. axb5 {[%emt 0:01:16]} axb5 {[%emt 0:00:20]} 38. h5 {[%emt 0:02:42]} Kg5 {[%emt 0:01:24]} 39. Ng4 {[%emt 0:01:11]} Bg7 {[%emt 0:01:59]} 40. h6 {[%emt 0:02:11]} Bxh6 {[%emt 0:00:43]} 41. Nxh6 {[%emt 0:00:13]} Kxh6 {[%emt 0:00:21]} 42. cxb5 {[%emt 0:01:45]} cxb5 {[%emt 0:00:29]} 43. Kg4 {[%emt 0:00:22]} e3 {[%emt 0:01:08]} 44. Kxf3 {[%emt 0:00:09]} exf2 {[%emt 0:00:09]} 45. Kxf2 {[%emt 0:00:06]} Kg5 {[%emt 0:02:23]} 46. Ke3 {[%emt 0:00:40]} Kf5 {[%emt 0:00:47]} 47. Kd3 {[%emt 0:05:55]} Ke5 {[%emt 0:02:46]} 48. b4 {[%emt 0:00:35]} cxb4 {[%emt 0:00:34]} 49. cxb4 {[%emt 0:00:08]} Kd5 {[%emt 0:00:06]} 50. Kd2 {[%emt 0:00:25]} Kd4 {[%emt 0:00:23]} 51. Kc2 {[%emt 0:00:26]} Kc4 {[%emt 0:00:07]} 52. Kc1 {[%emt 0:00:12]} Kc3 {[%emt 0:02:12]} 53. Kb1 {[%emt 0:00:05]} Kb3 {[%emt 0:01:03]} 54. Kc1 {[%emt 0:00:15]} Ka4 {[%emt 0:00:10]} 55. Kc2 {[%emt 0:00:38]} Kxb4 {[%emt 0:00:36]} 56. Kb2 {[%emt 0:00:08]} Kc4 {[%emt 0:00:05]} 57. Kc2 {[%emt 0:00:08]} b4 {[%emt 0:00:13]} 58. Kb2 {[%emt 0:00:11]} b3 {[%emt 0:00:05]} 59. Kb1 {[%emt 0:00:12]} Kc3 {[%emt 0:00:19]} 60. Kc1 {[%emt 0:00:06]} Kb4 {[%emt 0:00:04]} 61. Kb2 {[%emt 0:00:10]} Kc4 {[%emt 0:00:16]} 62. Kb1 {[%emt 0:00:06]} Kd3 {[%emt 0:00:05]} 63. Kb2 {[%emt 0:00:17]} 1/2-1/2

[Event "Marshall CC U2400 February 2024"]
[Site "New York"]
[Date "2024.02.17"]
[Round "2.4"]
[White "Schaefer, Sasha Milo"]
[Black "Ng, Timothy"]
[Result "*"]
[ECO "B31"]
[WhiteElo "1633"]
[BlackElo "1728"]
[Annotator "NA RC"]
[PlyCount "37"]
[EventDate "2024.02.16"]
[EventType "swiss"]
[EventCountry "USA"]
[SourceTitle "playchess.com"]
[Source "ChessBase"]
[SourceQuality "1"]
[TimeControl "5400+30"]

1. e4 {[%emt 0:00:01]} c5 {[%emt 0:00:05]} 2. Nf3 {[%emt 0:00:02]} Nc6 {[%emt 0:00:07]} 3. Bb5 {[%emt 0:00:05]} g6 {[%emt 0:00:06]} 4. O-O {[%emt 0:00:16]} Bg7 {[%emt 1:32:12]} 5. c3 {[%emt 0:00:11]} e5 {[%emt 0:00:18]} 6. Bxc6 {[%emt 0:00:41]} dxc6 {[%emt 0:00:06]} 7. d3 {[%emt 0:00:05]} Ne7 {[%emt 0:00:34]} 8. Be3 {[%emt 0:00:34]} b6 {[%emt 0:01:04]} 9. Qe2 {[%emt 0:01:00]} O-O {[%emt 0:00:41]} 10. Rd1 {[%emt 0:00:33]} Ba6 {[%emt 0:02:33]} 11. Na3 {[%emt 0:00:44]} Qc7 {[%emt 0:00:59]} 12. Nc4 {[%emt 0:01:15]} Rad8 {[%emt 0:05:13]} 13. a4 {[%emt 1:31:33]} f5 {[%emt 0:03:03]} 14. exf5 {[%emt 0:00:53]} gxf5 {[%emt 0:01:16]} 15. Bg5 {[%emt 0:01:55]} Bxc4 {[%emt 0:01:41]} 16. dxc4 {[%emt 0:01:05]} e4 {[%emt 0:01:13]} 17. Bxe7 {[%emt 0:01:38]} Rd5 {[%emt 1:19:56]} 18. Rd3 Rxd3 {[%emt 0:00:00]} 19. Rd1 {[%emt 0:00:51]} *

[Event "Marshall CC U2400 February 2024"]
[Site "New York"]
[Date "2024.02.18"]
[Round "3.1"]
[White "Gutnik, Aleksandr"]
[Black "Jiang, Jason"]
[Result "1/2-1/2"]
[ECO "B52"]
[WhiteElo "1956"]
[BlackElo "1864"]
[Annotator "NA RC"]
[PlyCount "57"]
[EventDate "2024.02.16"]
[EventType "swiss"]
[EventCountry "USA"]
[SourceTitle "playchess.com"]
[Source "ChessBase"]
[SourceQuality "1"]
[TimeControl "5400+30"]

1. e4 {[%emt 0:00:05]} c5 {[%emt 0:01:09]} 2. Nf3 {[%emt 0:00:11]} d6 {[%emt 0:00:26]} 3. Bb5+ {[%emt 0:00:08]} Bd7 {[%emt 0:00:08]} 4. Bxd7+ {[%emt 0:00:07]} Qxd7 {[%emt 0:00:09]} 5. c4 {[%emt 0:00:29]} Nf6 {[%emt 0:00:46]} 6. Nc3 {[%emt 0:00:48]} g6 {[%emt 0:00:27]} 7. d4 {[%emt 0:00:51]} cxd4 {[%emt 0:00:13]} 8. Nxd4 {[%emt 0:00:10]} Bg7 {[%emt 0:00:19]} 9. f3 {[%emt 0:00:25]} O-O {[%emt 0:00:17]} 10. O-O {[%emt 0:00:42]} Rc8 {[%emt 0:01:15]} 11. b3 {[%emt 0:01:16]} d5 {[%emt 0:00:58]} 12. exd5 {[%emt 0:05:46]} Nxd5 {[%emt 0:00:18]} 13. Nxd5 {[%emt 0:04:01]} e6 {[%emt 0:00:11]} 14. Bh6 {[%emt 0:02:39]} exd5 {[%emt 0:00:12]} 15. Bxg7 {[%emt 0:00:13]} Kxg7 {[%emt 0:00:10]} 16. cxd5 {[%emt 0:01:58]} Qxd5 {[%emt 0:01:34]} 17. Ne2 {[%emt 0:01:45]} Qe5 {[%emt 0:10:26]} 18. Qd4 {[%emt 0:03:04]} Nc6 {[%emt 0:01:30]} 19. Qxe5+ {[%emt 0:00:09]} Nxe5 {[%emt 0:00:06]} 20. Rac1 {[%emt 0:01:10]} Rxc1 {[%emt 0:04:29]} 21. Rxc1 {[%emt 0:01:18]} Rd8 {[%emt 0:00:47]} 22. Rc2 {[%emt 0:05:03]} Rd7 {[%emt 0:04:27]} 23. h3 {[%emt 0:02:26]} f5 {[%emt 0:01:08]} 24. Kh2 {[%emt 0:02:07]} Kf6 {[%emt 0:02:22]} 25. f4 {[%emt 0:11:22]} Nd3 {[%emt 0:04:17]} 26. Rd2 {[%emt 0:05:22]} Nc5 {[%emt 0:01:35]} 27. Rxd7 {[%emt 0:00:25]} Nxd7 {[%emt 0:00:08]} 28. Nd4 {[%emt 0:01:50]} Nc5 {[%emt 0:01:06]} 29. Kg3 {[%emt 0:00:46]} 1/2-1/2

[Event "Marshall CC U2400 February 2024"]
[Site "New York"]
[Date "2024.02.18"]
[Round "3.2"]
[White "Colwell, Andrew"]
[Black "Slesinski, Matthew"]
[Result "0-1"]
[ECO "E85"]
[WhiteElo "1672"]
[BlackElo "1676"]
[Annotator "NA RC"]
[PlyCount "92"]
[EventDate "2024.02.16"]
[EventType "swiss"]
[EventCountry "USA"]
[SourceTitle "playchess.com"]
[Source "ChessBase"]
[SourceQuality "1"]
[TimeControl "5400+30"]

1. d4 {[%emt 0:00:01]} Nf6 {[%emt 0:00:10]} 2. c4 {[%emt 0:00:03]} g6 {[%emt 0:00:07]} 3. Nc3 {[%emt 0:00:04]} Bg7 {[%emt 0:00:03]} 4. e4 {[%emt 0:00:02]} d6 {[%emt 0:00:04]} 5. f3 {[%emt 0:00:11]} O-O {[%emt 0:00:08]} 6. Be3 {[%emt 0:00:02]} e5 {[%emt 0:00:22]} 7. Nge2 {[%emt 0:00:05]} Nc6 {[%emt 0:02:11]} 8. d5 {[%emt 0:00:14]} Ne7 {[%emt 0:00:14]} 9. Qd2 {[%emt 0:09:04]} Nd7 {[%emt 0:07:34]} 10. g4 {[%emt 0:00:23]} a5 {[%emt 0:01:53]} 11. Ng3 {[%emt 0:05:22]} Nc5 {[%emt 0:03:38]} 12. h4 {[%emt 0:04:23]} f5 {[%emt 0:16:21]} 13. gxf5 {[%emt 0:01:39]} gxf5 {[%emt 0:00:18]} 14. Nh5 {[%emt 0:05:30]} f4 {[%emt 0:04:01]} 15. Bxc5 {[%emt 0:00:55]} dxc5 {[%emt 0:00:26]} 16. Qg2 {[%emt 0:01:17]} Rf7 {[%emt 0:09:27]} 17. O-O-O {[%emt 0:02:34]} Ng6 {[%emt 0:03:28]} 18. Nxg7 {[%emt 0:11:36]} Rxg7 {[%emt 0:00:16]} 19. Qf2 {[%emt 0:00:04]} Qe7 {[%emt 0:09:56]} 20. Be2 {[%emt 0:03:05]} h5 {[%emt 0:01:44]} 21. Rdg1 {[%emt 0:00:09]} Bd7 {[%emt 0:03:06]} 22. Rg5 {[%emt 0:00:24]} Kf7 {[%emt 0:08:02]} 23. Rxh5 {[%emt 0:03:12]} Rh8 {[%emt 0:06:19]} 24. Rxh8 {[%emt 0:02:31]} Nxh8 {[%emt 0:00:07]} 25. Rg1 {[%emt 0:05:31]} Rxg1+ {[%emt 0:23:05]} 26. Qxg1 {[%emt 0:45:09]} b6 {[%emt 0:00:00]} 27. Qh2 {[%emt 0:00:00]} Ng6 {[%emt 0:00:00]} 28. h5 {[%emt 0:00:00]} Nh4 {[%emt 0:00:00]} 29. d6 {[%emt 0:00:00]} cxd6 {[%emt 0:00:00]} 30. Nd5 {[%emt 0:00:00]} Qg5 {[%emt 0:00:00]} 31. Nxb6 {[%emt 0:00:00]} Be6 {[%emt 0:00:00]} 32. Qh1 {[%emt 0:00:00]} Qxh5 {[%emt 0:00:00]} 33. Qe1 {[%emt 0:00:00]} Qg5 {[%emt 0:00:00]} 34. Qxa5 {[%emt 0:00:00]} Qg1+ {[%emt 0:00:00]} 35. Kc2 {[%emt 0:00:00]} Nxf3 {[%emt 0:00:00]} 36. Bxf3 {[%emt 0:00:00]} Qf2+ {[%emt 0:00:00]} 37. Qd2 {[%emt 0:00:00]} Qxf3 {[%emt 0:00:00]} 38. Qd3 {[%emt 0:00:00]} Qg2+ {[%emt 0:00:00]} 39. Qd2 {[%emt 0:00:54]} f3 {[%emt 0:00:00]} 40. Kc3 {[%emt 0:01:33]} f2 {[%emt 0:00:00]} 41. Qxd6 {[%emt 0:02:06]} Qf3+ {[%emt 0:00:00]} 42. Kc2 {[%emt 0:02:32]} Qxe4+ {[%emt 0:00:00]} 43. Kb3 {[%emt 0:00:15]} f1=Q {[%emt 0:00:00]} 44. Qc7+ {[%emt 0:00:22]} Kg6 {[%emt 0:00:00]} 45. Qxc5 {[%emt 0:00:38]} Qfd3+ {[%emt 0:00:49]} 46. Kb4 {[%emt 0:00:18]} Qdd4 {[%emt 0:00:53]} 0-1

[Event "Marshall CC U2400 February 2024"]
[Site "New York"]
[Date "2024.02.18"]
[Round "3.3"]
[White "Knowles, Chase"]
[Black "Qiao, Richardson Jingsi"]
[Result "1-0"]
[ECO "A31"]
[WhiteElo "1941"]
[BlackElo "1564"]
[Annotator "NA RC"]
[PlyCount "79"]
[EventDate "2024.02.16"]
[EventType "swiss"]
[EventCountry "USA"]
[SourceTitle "playchess.com"]
[Source "ChessBase"]
[SourceQuality "1"]
[TimeControl "5400+30"]

1. Nf3 {[%emt 0:00:08]} Nf6 {[%emt 0:00:20]} 2. c4 {[%emt 0:00:06]} c5 {[%emt 0:00:24]} 3. d4 {[%emt 0:00:07]} cxd4 {[%emt 0:00:44]} 4. Nxd4 {[%emt 0:00:06]} Nc6 {[%emt 0:00:32]} 5. Nc3 {[%emt 0:00:29]} d6 {[%emt 0:01:35]} 6. e4 {[%emt 0:00:46]} e5 {[%emt 0:01:26]} 7. Nc2 {[%emt 0:01:45]} h6 {[%emt 0:00:59]} 8. Be2 {[%emt 0:01:14]} g5 {[%emt 0:04:34]} 9. Be3 {[%emt 0:01:36]} Be6 {[%emt 0:00:47]} 10. f3 {[%emt 0:01:28]} a6 {[%emt 0:07:28]} 11. Nd5 {[%emt 0:02:43]} Bxd5 {[%emt 0:01:34]} 12. cxd5 {[%emt 0:00:35]} Ne7 {[%emt 0:00:45]} 13. Bf2 {[%emt 0:02:22]} Ng6 {[%emt 0:02:03]} 14. O-O {[%emt 0:00:42]} Bg7 {[%emt 0:02:54]} 15. Re1 {[%emt 0:01:48]} O-O {[%emt 0:01:58]} 16. Ne3 {[%emt 0:00:19]} Qd7 {[%emt 0:00:28]} 17. Nc4 {[%emt 0:02:14]} Rab8 {[%emt 0:03:25]} 18. Rc1 {[%emt 0:02:02]} Nf4 {[%emt 0:00:43]} 19. Bf1 {[%emt 0:00:46]} b5 {[%emt 0:01:27]} 20. Na5 {[%emt 0:02:44]} Nh7 {[%emt 0:04:16]} 21. Re3 {[%emt 0:01:15]} Rbc8 {[%emt 0:04:10]} 22. Rec3 {[%emt 0:01:52]} Rxc3 {[%emt 0:01:09]} 23. Rxc3 {[%emt 0:01:07]} Rc8 {[%emt 0:00:20]} 24. Nc6 {[%emt 0:01:32]} Kh8 {[%emt 0:00:34]} 25. b4 {[%emt 0:03:41]} Bf8 {[%emt 0:03:16]} 26. a4 {[%emt 0:01:17]} f5 {[%emt 0:04:27]} 27. axb5 {[%emt 0:00:37]} fxe4 {[%emt 0:00:10]} 28. bxa6 {[%emt 0:03:15]} Nf6 {[%emt 0:01:13]} 29. fxe4 {[%emt 0:03:07]} Nxe4 {[%emt 0:01:16]} 30. Rc2 {[%emt 0:01:10]} Nxf2 {[%emt 0:00:53]} 31. Rxf2 {[%emt 0:02:05]} Bg7 {[%emt 0:00:48]} 32. b5 {[%emt 0:01:17]} e4 {[%emt 0:01:20]} 33. g3 {[%emt 0:01:51]} e3 {[%emt 0:01:34]} 34. Rc2 {[%emt 0:00:52]} Be5 {[%emt 0:04:54]} 35. gxf4 {[%emt 0:04:37]} gxf4 {[%emt 0:00:10]} 36. Qf3 {[%emt 0:02:10]} Rg8+ {[%emt 0:00:56]} 37. Rg2 {[%emt 0:01:14]} Rxg2+ {[%emt 0:00:31]} 38. Qxg2 {[%emt 0:52:31]} Qf5 {[%emt 0:01:24]} 39. a7 {[%emt 0:00:00]} Qf8 {[%emt 0:00:12]} 40. Be2 {[%emt 0:00:00]} 1-0

[Event "Marshall CC U2400 February 2024"]
[Site "New York"]
[Date "2024.02.18"]
[Round "3.4"]
[White "Kashyap, Mahati B"]
[Black "Nkululeko, Nkosi"]
[Result "0-1"]
[ECO "B55"]
[WhiteElo "1341"]
[BlackElo "1867"]
[Annotator "NA RC"]
[PlyCount "84"]
[EventDate "2024.02.16"]
[EventType "swiss"]
[EventCountry "USA"]
[SourceTitle "playchess.com"]
[Source "ChessBase"]
[SourceQuality "1"]
[TimeControl "5400+30"]

1. e4 {[%emt 0:00:01]} c5 {[%emt 0:00:22]} 2. Nf3 {[%emt 0:00:03]} d6 {[%emt 0:00:09]} 3. d4 {[%emt 0:00:03]} cxd4 {[%emt 0:00:04]} 4. Nxd4 {[%emt 0:00:04]} Nf6 {[%emt 0:00:06]} 5. f3 {[%emt 0:00:48]} e5 {[%emt 0:00:33]} 6. Nb3 {[%emt 0:00:11]} Be6 {[%emt 0:00:08]} 7. c4 {[%emt 0:00:11]} Nbd7 {[%emt 0:02:07]} 8. Be3 {[%emt 0:00:21]} Qc7 {[%emt 0:00:25]} 9. N3d2 {[%emt 0:00:34]} Rc8 {[%emt 0:01:19]} 10. b3 {[%emt 0:00:25]} Be7 {[%emt 0:01:27]} 11. Nc3 {[%emt 0:00:36]} a6 {[%emt 0:00:20]} 12. Rc1 {[%emt 0:00:09]} Qa5 {[%emt 0:00:27]} 13. Ndb1 {[%emt 0:07:37]} O-O {[%emt 0:04:29]} 14. Qd2 {[%emt 0:00:30]} Nh5 {[%emt 0:04:52]} 15. Be2 {[%emt 0:03:04]} Nf4 {[%emt 0:11:30]} 16. O-O {[%emt 0:02:25]} Kh8 {[%emt 0:07:49]} 17. Nd5 {[%emt 0:01:42]} Qxd2 {[%emt 0:00:18]} 18. Nxd2 {[%emt 0:01:15]} Nxe2+ {[%emt 0:00:09]} 19. Kf2 {[%emt 0:01:13]} Nxc1 {[%emt 0:01:48]} 20. Nxe7 {[%emt 0:00:49]} Nd3+ {[%emt 0:01:06]} 21. Ke2 {[%emt 0:00:27]} Rce8 {[%emt 0:00:08]} 22. Nd5 {[%emt 0:02:09]} N3c5 {[%emt 0:00:39]} 23. Nc7 {[%emt 0:02:51]} Rc8 {[%emt 0:00:15]} 24. Nxe6 {[%emt 0:00:14]} fxe6 {[%emt 0:01:20]} 25. Rd1 {[%emt 0:00:23]} Rfd8 {[%emt 0:00:38]} 26. Bg5 {[%emt 0:00:15]} Nf6 {[%emt 0:00:08]} 27. Nb1 {[%emt 0:02:38]} b5 {[%emt 0:00:22]} 28. cxb5 {[%emt 0:00:23]} axb5 {[%emt 0:00:15]} 29. Na3 {[%emt 0:00:29]} Rb8 {[%emt 0:01:20]} 30. Nc2 {[%emt 0:00:16]} b4 {[%emt 0:00:34]} 31. Ne3 {[%emt 0:00:24]} h6 {[%emt 0:00:44]} 32. Bh4 {[%emt 0:00:16]} g5 {[%emt 0:02:06]} 33. Bf2 {[%emt 0:00:12]} Ra8 {[%emt 0:00:53]} 34. Rd2 {[%emt 0:00:19]} d5 {[%emt 0:01:50]} 35. exd5 {[%emt 0:01:02]} exd5 {[%emt 0:00:13]} 36. Nf5 {[%emt 0:00:33]} d4 {[%emt 0:00:55]} 37. Nxh6 {[%emt 0:00:17]} Rd7 {[%emt 0:00:16]} 38. Bg3 {[%emt 0:00:53]} Kh7 {[%emt 0:00:36]} 39. Ng4 {[%emt 0:01:50]} Nxg4 {[%emt 0:00:09]} 40. fxg4 {[%emt 0:00:08]} Ne4 {[%emt 0:00:12]} 41. Rb2 {[%emt 0:00:54]} d3+ {[%emt 0:00:06]} 42. Kd1 {[%emt 0:00:11]} d2 {[%emt 0:00:12]} 0-1

[Event "Marshall CC U2400 February 2024"]
[Site "New York"]
[Date "2024.02.18"]
[Round "3.5"]
[White "Creswell, Charlie"]
[Black "Schaefer, Sasha Milo"]
[Result "1/2-1/2"]
[ECO "D36"]
[WhiteElo "1769"]
[BlackElo "1633"]
[Annotator "NA RC"]
[PlyCount "79"]
[EventDate "2024.02.16"]
[EventType "swiss"]
[EventCountry "USA"]
[SourceTitle "playchess.com"]
[Source "ChessBase"]
[SourceQuality "1"]
[TimeControl "5400+30"]

1. d4 {[%emt 0:00:02]} d5 {[%emt 0:00:02]} 2. c4 {[%emt 0:00:07]} e6 {[%emt 0:00:02]} 3. Nc3 {[%emt 0:00:06]} Nf6 {[%emt 0:00:03]} 4. cxd5 {[%emt 0:00:06]} exd5 {[%emt 0:00:02]} 5. Bg5 {[%emt 0:00:10]} c6 {[%emt 0:00:11]} 6. e3 {[%emt 0:00:02]} h6 {[%emt 0:00:07]} 7. Bh4 {[%emt 0:00:02]} Be7 {[%emt 0:00:08]} 8. Bd3 {[%emt 0:00:04]} O-O {[%emt 0:00:08]} 9. Qc2 {[%emt 0:00:03]} Re8 {[%emt 0:00:08]} 10. Nge2 {[%emt 0:00:04]} Nbd7 {[%emt 0:00:09]} 11. O-O {[%emt 0:00:07]} a5 {[%emt 0:00:26]} 12. f3 {[%emt 0:02:07]} b5 {[%emt 0:00:05]} 13. Bf2 {[%emt 0:07:31]} Ba6 {[%emt 0:02:16]} 14. a3 {[%emt 0:08:17]} Qb6 {[%emt 0:01:21]} 15. Qd2 {[%emt 0:09:34]} c5 {[%emt 0:04:32]} 16. e4 {[%emt 0:10:43]} dxe4 {[%emt 0:01:16]} 17. Nxe4 {[%emt 0:00:58]} Nxe4 {[%emt 0:00:45]} 18. Bxe4 {[%emt 0:00:24]} Rad8 {[%emt 0:02:17]} 19. Rfd1 {[%emt 0:08:08]} Nf6 {[%emt 0:06:01]} 20. Bc2 {[%emt 0:10:24]} cxd4 {[%emt 0:01:06]} 21. Nxd4 {[%emt 0:03:15]} Bc5 {[%emt 0:01:02]} 22. b4 {[%emt 0:01:32]} Bxd4 {[%emt 0:03:44]} 23. Bxd4 {[%emt 0:00:02]} Qc6 {[%emt 0:01:06]} 24. Qf2 {[%emt 0:01:55]} axb4 {[%emt 0:02:25]} 25. axb4 {[%emt 0:00:23]} Bb7 {[%emt 0:00:51]} 26. Rac1 {[%emt 0:01:29]} Qe6 {[%emt 0:01:26]} 27. Bd3 {[%emt 0:01:57]} Rd5 {[%emt 0:02:11]} 28. Re1 {[%emt 0:05:12]} Qd6 {[%emt 0:03:19]} 29. Rxe8+ {[%emt 0:08:45]} Nxe8 {[%emt 0:00:21]} 30. Bc5 {[%emt 0:00:13]} Qf4 {[%emt 0:01:13]} 31. Re1 {[%emt 0:07:17]} Rxd3 {[%emt 0:01:06]} 32. Rxe8+ {[%emt 0:00:02]} Kh7 {[%emt 0:00:12]} 33. Qc2 {[%emt 0:00:05]} Qd2 {[%emt 0:01:06]} 34. Qxd2 {[%emt 0:00:29]} Rxd2 {[%emt 0:00:13]} 35. Re7 {[%emt 0:00:01]} Bd5 {[%emt 0:00:39]} 36. Rd7 {[%emt 0:00:32]} Rd1+ {[%emt 0:00:06]} 37. Kf2 {[%emt 0:00:02]} Bb3 {[%emt 0:00:19]} 38. Bd4 {[%emt 0:00:38]} Rd2+ {[%emt 0:01:14]} 39. Kg3 {[%emt 0:00:10]} Bc4 {[%emt 0:00:41]} 40. f4 {[%emt 0:05:06]} 1/2-1/2

[Event "Marshall CC U2400 February 2024"]
[Site "New York"]
[Date "2024.02.18"]
[Round "4.1"]
[White "Jiang, Jason"]
[Black "Slesinski, Matthew"]
[Result "1-0"]
[ECO "E68"]
[WhiteElo "1864"]
[BlackElo "1676"]
[Annotator "NA RC"]
[PlyCount "49"]
[EventDate "2024.02.16"]
[EventType "swiss"]
[EventCountry "USA"]
[SourceTitle "playchess.com"]
[Source "ChessBase"]
[SourceQuality "1"]
[TimeControl "5400+30"]

1. c4 {[%emt 0:02:25]} Nf6 {[%emt 0:00:10]} 2. Nc3 {[%emt 0:00:29]} g6 {[%emt 0:00:46]} 3. g3 {[%emt 0:00:15]} Bg7 {[%emt 0:00:06]} 4. Bg2 {[%emt 0:00:11]} O-O {[%emt 0:00:09]} 5. Nf3 {[%emt 0:00:18]} d6 {[%emt 0:00:05]} 6. d4 {[%emt 0:00:17]} Nbd7 {[%emt 0:02:45]} 7. O-O {[%emt 0:01:07]} e5 {[%emt 0:00:18]} 8. b3 {[%emt 0:00:47]} c6 {[%emt 0:04:27]} 9. e4 {[%emt 0:02:08]} Qe7 {[%emt 0:01:35]} 10. Ba3 {[%emt 0:05:37]} Rd8 {[%emt 0:02:34]} 11. dxe5 {[%emt 0:01:47]} Nxe5 {[%emt 0:00:18]} 12. Nxe5 {[%emt 0:05:15]} Qxe5 {[%emt 0:00:06]} 13. Bb2 {[%emt 0:02:17]} Qa5 {[%emt 1:23:41]} 14. Qc2 {[%emt 0:05:48]} Be6 {[%emt 0:00:00]} 15. Rad1 {[%emt 0:03:33]} d5 {[%emt 0:00:00]} 16. exd5 {[%emt 0:02:31]} cxd5 {[%emt 0:00:00]} 17. cxd5 {[%emt 0:00:18]} Nxd5 {[%emt 0:00:00]} 18. Nxd5 {[%emt 0:01:59]} Bxd5 {[%emt 0:00:00]} 19. Bxg7 {[%emt 0:00:32]} Kxg7 {[%emt 0:00:00]} 20. Qb2+ {[%emt 0:03:42]} Kg8 {[%emt 0:00:00]} 21. Qe5 {[%emt 0:02:23]} Qxa2 {[%emt 0:00:00]} 22. Bxd5 {[%emt 0:00:23]} Rd7 {[%emt 0:00:00]} 23. Bc4 {[%emt 0:01:56]} Rd2 {[%emt 0:00:00]} 24. Qf4 {[%emt 0:01:02]} Rxd1 {[%emt 0:00:00]} 25. Qxf7+ {[%emt 0:00:04]} 1-0